fUSD/lending_fUSD_20250629
["ID","MTS","AMOUNT","RATE_DAILY","PERIOD"]
[368554651,1751205438371,-490.0,0.00024657,2]
[368554652,1751205438393,-197.59148099,0.00024657,2]
[368554653,1751205438414,-490.0,0.00024657,2]
[368554654,1751205438437,-490.0,0.00024657,2]
[368554655,1751205438459,-490.0,0.00024657,2]
[368554656,1751205438481,-495.1301241,0.00024657,2]
[368554657,1751205438502,-490.0,0.00024657,2]
[368554658,1751205438524,-490.0,0.00024657,2]
[368554659,1751205438546,-490.0,0.00024657,2]
[368554660,1751205438568,-625.12168797,0.00024657,2]
[368554661,1751205438589,-500.0,0.00024657,2]
[368554662,1751205438611,-490.0,0.00024657,2]
[368554663,1751205438633,-517.05035662,0.00024657,2]
[368554664,1751205438655,-490.0,0.00024657,2]
[368554665,1751205438678,-1484.38,0.00024657,2]
[368554666,1751205438700,-490.0,0.00024657,2]
[368554667,1751205438721,-490.0,0.00024657,2]
[368554668,1751205438743,-3699.808983,0.00024657,2]
[368554669,1751205438764,-693.12,0.00024657,2]
[368554670,1751205438785,-950.14,0.00024657,2]
[368554671,1751205438811,-309.01120216,0.00024657,2]
[368554672,1751205438832,-490.0,0.00024657,2]
[368554673,1751205438854,-490.0,0.00024657,2]
[368554674,1751205438877,-490.0,0.00024657,2]
[368554675,1751205438899,-550.94,0.00024657,2]
[368554676,1751205438921,-490.0,0.00024657,2]
[368554677,1751205438943,-490.0,0.00024657,2]
[368554678,1751205438964,-491.94951106,0.00024657,2]
[368554679,1751205438991,-545.46,0.00024657,2]
[368554680,1751205439015,-3520.80833,0.00024657,2]
[368554681,1751205439037,-490.0,0.00024657,2]
[368554682,1751205439060,-490.0,0.00024657,2]
[368554683,1751205439084,-490.0,0.00024657,2]
[368554684,1751205439106,-490.0,0.00024657,2]
[368554685,1751205439133,-789.46,0.00024657,2]
[368554686,1751205439157,-490.0,0.00024657,2]
[368554687,1751205439179,-490.0,0.00024657,2]
[368554688,1751205439202,-3646.678603,0.00024657,2]
[368554689,1751205439224,-634.04616981,0.00024657,2]
[368554690,1751205439246,-156.724435,0.00024657,2]
[368554691,1751205439268,-490.0,0.00024657,2]
[368554692,1751205439290,-509.14,0.00024657,2]
[368554693,1751205439311,-554.624072,0.00024657,2]
[368554694,1751205439333,-152.894097,0.00024657,2]
[368554695,1751205439356,-864.49,0.00024657,2]
[368554696,1751205439378,-490.0,0.00024657,2]
[368554697,1751205439400,-490.0,0.00024657,2]
[368554698,1751205439422,-1227.23,0.00024657,2]
[368554699,1751205439444,-490.0,0.00024657,2]
[368554700,1751205439465,-490.0,0.00024657,2]
[368554701,1751205439487,-490.0,0.00024657,2]
[368554702,1751205439508,-490.0,0.00024657,2]
[368554703,1751205439529,-490.0,0.00024657,2]
[368554704,1751205439552,-507.33175459,0.00024657,2]
[368554705,1751205439573,-490.0,0.00024657,2]
[368554706,1751205439594,-883.74,0.00024657,2]
[368554707,1751205439615,-490.0,0.00024657,2]
[368554708,1751205439636,-554.99,0.00024657,2]
[368554709,1751205439671,-490.0,0.00024657,2]
[368554710,1751205439693,-542.82463537,0.00024657,2]
[368554711,1751205439715,-490.0,0.00024657,2]
[368554712,1751205439736,-490.0,0.00024657,2]
[368554713,1751205439759,-494.58364764,0.00024657,2]
[368554714,1751205439781,-500.12,0.00024657,2]
[368554715,1751205440110,-490.0,0.00024657,2]
[368554716,1751205440132,-490.0,0.00024657,2]
[368554717,1751205440154,-490.0,0.00024657,2]
[368554718,1751205440175,-490.0,0.00024657,2]
[368554719,1751205440196,-630.33,0.00024657,2]
[368554720,1751205440219,-490.0,0.00024657,2]
[368554721,1751205440241,-490.0,0.00024657,2]
[368554722,1751205440264,-1198.31,0.00024657,2]
[368554723,1751205440285,-490.0,0.00024657,2]
[368554724,1751205440306,-154.22019333,0.00024657,2]
[368554725,1751205440327,-490.0,0.00024657,2]
[368554726,1751205440349,-490.0,0.00024657,2]
[368554727,1751205440370,-536.34,0.00024657,2]
[368554728,1751205440390,-490.0,0.00024657,2]
[368554729,1751205440411,-490.0,0.00024657,2]
[368554730,1751205440433,-490.0,0.00024657,2]
[368554731,1751205440456,-490.0,0.00024657,2]
[368554732,1751205440477,-490.0,0.00024657,2]
[368554733,1751205440498,-1081.51,0.00024657,2]
[368554734,1751205440520,-1102.06,0.00024657,2]
[368554735,1751205440542,-490.0,0.00024657,2]
[368554736,1751205440563,-490.0,0.00024657,2]
[368554737,1751205440586,-1683.2,0.00024657,2]
[368554738,1751205440607,-490.0,0.00024657,2]
[368554739,1751205440629,-490.0,0.00024657,2]
[368554740,1751205440651,-490.0,0.00024657,2]
[368554741,1751205440671,-490.0,0.00024657,2]
[368554742,1751205440694,-702.42,0.00024657,2]
[368554743,1751205440718,-500.0,0.00024657,2]
[368554744,1751205440741,-490.0,0.00024657,2]
[368554745,1751205440764,-490.0,0.00024657,2]
[368554746,1751205440786,-490.0,0.00024657,2]
[368554747,1751205440807,-490.0,0.00024657,2]
[368554748,1751205440829,-524.54,0.00024657,2]
[368554749,1751205440850,-490.0,0.00024657,2]
[368554750,1751205440871,-503.33,0.00024657,2]
[368554751,1751205440892,-244.59800318,0.00024657,2]
[368554752,1751205440914,-490.0,0.00024657,2]
[368554753,1751205440937,-490.0,0.00024657,2]
[368554754,1751205440959,-490.0,0.00024657,2]
[368554755,1751205440982,-490.0,0.00024657,2]
[368554756,1751205441004,-490.0,0.00024657,2]
[368554757,1751205441028,-490.0,0.00024657,2]
[368554758,1751205441051,-490.0,0.00024657,2]
[368554759,1751205441073,-490.0,0.00024657,2]
[368554760,1751205441094,-828.94,0.00024657,2]
[368554761,1751205441115,-490.0,0.00024657,2]
[368554762,1751205441137,-490.0,0.00024657,2]
[368554763,1751205441159,-490.0,0.00024657,2]
[368554764,1751205441181,-490.0,0.00024657,2]
[368554765,1751205441202,-490.0,0.00024657,2]
[368554766,1751205441223,-490.0,0.00024657,2]
[368554767,1751205441244,-490.0,0.00024657,2]
[368554768,1751205441266,-645.5,0.00024657,2]
[368554769,1751205441288,-490.0,0.00024657,2]
[368554770,1751205441309,-566.95484858,0.00024657,2]
[368554771,1751205441331,-490.0,0.00024657,2]
[368554772,1751205441352,-490.0,0.00024657,2]
[368554773,1751205441374,-835.52,0.00024657,2]
[368554774,1751205441395,-679.41,0.00024657,2]
[368554775,1751205441416,-490.0,0.00024657,2]
[368554776,1751205441437,-490.0,0.00024657,2]
[368554777,1751205441458,-490.0,0.00024657,2]
[368554778,1751205441480,-490.0,0.00024657,2]
[368554779,1751205441501,-490.0,0.00024657,2]
[368554780,1751205441521,-490.0,0.00024657,2]
[368554781,1751205441542,-490.0,0.00024657,2]
[368554782,1751205441563,-490.0,0.00024657,2]
[368554783,1751205441585,-490.0,0.00024657,2]
[368554784,1751205441607,-490.0,0.00024657,2]
[368554785,1751205441628,-490.0,0.00024657,2]
[368554786,1751205441649,-490.0,0.00024657,2]
[368554787,1751205441671,-600.43,0.00024657,2]
[368554788,1751205441694,-490.0,0.00024657,2]
[368554789,1751205441716,-566.89090688,0.00024657,2]
[368554790,1751205441738,-652.86,0.00024657,2]
[368554791,1751205441760,-490.0,0.00024657,2]
[368554792,1751205441781,-490.0,0.00024657,2]
[368554793,1751205441803,-490.0,0.00024657,2]
[368554794,1751205441825,-490.0,0.00024657,2]
[368554795,1751205441847,-565.51,0.00024657,2]
[368554796,1751205441869,-1108.16,0.00024657,2]
[368554797,1751205441891,-490.0,0.00024657,2]
[368554798,1751205441913,-490.0,0.00024657,2]
[368554799,1751205441935,-490.0,0.00024657,2]
[368554800,1751205441959,-490.0,0.00024657,2]
[368554801,1751205441984,-638.95890736,0.00024657,2]
[368554802,1751205442007,-619.45,0.00024657,2]
[368554803,1751205442030,-490.0,0.00024657,2]
[368554804,1751205442053,-490.0,0.00024657,2]
[368554805,1751205442076,-490.0,0.00024657,2]
[368554806,1751205442099,-490.0,0.00024657,2]
[368554807,1751205442121,-490.0,0.00024657,2]
[368554808,1751205442143,-490.0,0.00024657,2]
[368554809,1751205442166,-680.53,0.00024657,2]
[368554810,1751205442190,-1022.49,0.00024657,2]
[368554811,1751205442212,-622.07,0.00024657,2]
[368554812,1751205442234,-490.0,0.00024657,2]
[368554813,1751205442255,-722.37,0.00024657,2]
[368554814,1751205442278,-784.99,0.00024657,2]
[368554815,1751205442299,-490.0,0.00024657,2]
[368554816,1751205442321,-1178.4,0.00024657,2]
[368554817,1751205442344,-490.0,0.00024657,2]
[368554818,1751205442365,-490.0,0.00024657,2]
[368554819,1751205442387,-490.0,0.00024657,2]
[368554820,1751205442408,-490.0,0.00024657,2]
[368554821,1751205442430,-490.0,0.00024657,2]
[368554822,1751205442452,-834.75,0.00024657,2]
[368554823,1751205442473,-598.65136984,0.00024657,2]
[368554824,1751205442494,-490.0,0.00024657,2]
[368554825,1751205442517,-490.0,0.00024657,2]
[368554826,1751205442538,-490.0,0.00024657,2]
[368554827,1751205442562,-490.0,0.00024657,2]
[368554828,1751205442584,-490.0,0.00024657,2]
[368554829,1751205442623,-780.25,0.00024657,2]
[368554830,1751205442673,-490.0,0.00024657,2]
[368554831,1751205442725,-490.0,0.00024657,2]
[368554832,1751205442774,-930.37,0.00024657,2]
[368554833,1751205442812,-819.08,0.00024657,2]
[368554834,1751205442837,-490.0,0.00024657,2]
[368554835,1751205442860,-490.0,0.00024657,2]
[368554836,1751205442883,-490.0,0.00024657,2]
[368554837,1751205442905,-490.0,0.00024657,2]
[368554838,1751205442928,-490.0,0.00024657,2]
[368554839,1751205442952,-846.74,0.00024657,2]
[368554840,1751205442977,-490.0,0.00024657,2]
[368554841,1751205442999,-490.0,0.00024657,2]
[368554842,1751205443021,-500.0,0.00024657,2]
[368554843,1751205443043,-490.0,0.00024657,2]
[368554844,1751205443068,-493.17348298,0.00024657,2]
[368554845,1751205443090,-586.77,0.00024657,2]
[368554846,1751205443111,-490.0,0.00024657,2]
[368554847,1751205443132,-490.0,0.00024657,2]
[368554848,1751205443156,-500.0,0.00024657,2]
[368554849,1751205443177,-500.0,0.00024657,2]
[368554850,1751205443199,-500.0,0.00024657,2]
[368554851,1751205443222,-500.0,0.00024657,2]
[368554852,1751205443243,-490.0,0.00024657,2]
[368554853,1751205443265,-490.0,0.00024657,2]
[368554854,1751205443288,-500.0,0.00024657,2]
[368554855,1751205443317,-880.06,0.00024657,2]
[368554856,1751205443342,-500.0,0.00024657,2]
[368554857,1751205443366,-500.0,0.00024657,2]
[368554858,1751205443389,-518.15521409,0.00024657,2]
[368554859,1751205443414,-490.0,0.00024657,2]
[368554860,1751205443437,-2025.35,0.00024657,2]
[368554861,1751205443460,-490.0,0.00024657,2]
[368554862,1751205443483,-490.0,0.00024657,2]
[368554863,1751205443506,-490.0,0.00024657,2]
[368554864,1751205443529,-851.15,0.00024657,2]
[368554865,1751205443551,-490.0,0.00024657,2]
[368554866,1751205443574,-938.76,0.00024657,2]
[368554867,1751205443596,-490.0,0.00024657,2]
[368554868,1751205443619,-490.0,0.00024657,2]
[368554869,1751205443642,-490.0,0.00024657,2]
[368554870,1751205443663,-578.39,0.00024657,2]
[368554871,1751205443686,-490.0,0.00024657,2]
[368554872,1751205443708,-490.0,0.00024657,2]
[368554873,1751205443731,-1169.62,0.00024657,2]
[368554874,1751205443753,-490.0,0.00024657,2]
[368554875,1751205443775,-490.0,0.00024657,2]
[368554876,1751205443798,-490.0,0.00024657,2]
[368554877,1751205443820,-668.78,0.00024657,2]
[368554878,1751205443847,-490.0,0.00024657,2]
[368554879,1751205443870,-526.51,0.00024657,2]
[368554880,1751205443899,-490.0,0.00024657,2]
[368554881,1751205443923,-1504.78,0.00024657,2]
[368554882,1751205443946,-490.0,0.00024657,2]
[368554883,1751205443968,-490.0,0.00024657,2]
[368554884,1751205443993,-490.0,0.00024657,2]
[368554885,1751205444019,-490.0,0.00024657,2]
[368554886,1751205444042,-490.0,0.00024657,2]
[368554887,1751205444066,-490.0,0.00024657,2]
[368554888,1751205444090,-490.0,0.00024657,2]
[368554889,1751205444114,-532.14,0.00024657,2]
[368554890,1751205444138,-490.0,0.00024657,2]
[368554891,1751205444165,-770.7,0.00024657,2]
[368554892,1751205444195,-490.0,0.00024657,2]
[368554893,1751205444221,-490.0,0.00024657,2]
[368554894,1751205444247,-490.0,0.00024657,2]
[368554895,1751205444271,-454.86656566,0.00024657,2]
[368554896,1751205444588,-490.0,0.00024657,2]
[368554897,1751205444619,-490.0,0.00024657,2]
[368554898,1751205444641,-1681.36,0.00024657,2]
[368554899,1751205444664,-490.0,0.00024657,2]
[368554900,1751205444685,-490.0,0.00024657,2]
[368554901,1751205444706,-490.0,0.00024657,2]
[368554902,1751205444729,-828.71,0.00024657,2]
[368554903,1751205444751,-490.0,0.00024657,2]
[368554904,1751205444772,-490.0,0.00024657,2]
[368554905,1751205444795,-490.0,0.00024657,2]
[368554906,1751205444818,-490.0,0.00024657,2]
[368554907,1751205444841,-490.0,0.00024657,2]
[368554908,1751205444863,-288.52700229,0.00024657,2]
[368554909,1751205444885,-540.0,0.00024657,2]
[368554910,1751205444907,-490.0,0.00024657,2]
[368554911,1751205444930,-490.0,0.00024657,2]
[368554912,1751205444951,-490.0,0.00024657,2]
[368554913,1751205444975,-490.0,0.00024657,2]
[368554914,1751205444998,-490.0,0.00024657,2]
[368554915,1751205445020,-490.0,0.00024657,2]
[368554916,1751205445043,-490.0,0.00024657,2]
[368554917,1751205445068,-490.0,0.00024657,2]
[368554918,1751205445090,-490.0,0.00024657,2]
[368554919,1751205445113,-1140.89,0.00024657,2]
[368554920,1751205445135,-490.0,0.00024657,2]
[368554921,1751205445157,-330.0,0.00024657,2]
[368554922,1751205445180,-1850.52,0.00024657,2]
[368554923,1751205445203,-490.0,0.00024657,2]
[368554924,1751205445225,-490.0,0.00024657,2]
[368554925,1751205445247,-490.0,0.00024657,2]
[368554926,1751205445270,-490.0,0.00024657,2]
[368554927,1751205445293,-490.0,0.00024657,2]
[368554928,1751205445317,-490.0,0.00024657,2]
[368554929,1751205445338,-490.0,0.00024657,2]
[368554930,1751205445360,-490.0,0.00024657,2]
[368554931,1751205445382,-490.0,0.00024657,2]
[368554932,1751205445404,-1062.0,0.00024657,2]
[368554933,1751205445426,-490.0,0.00024657,2]
[368554934,1751205445448,-490.0,0.00024657,2]
[368554935,1751205445470,-1377.28,0.00024657,2]
[368554936,1751205445492,-490.0,0.00024657,2]
[368554937,1751205445515,-490.0,0.00024657,2]
[368554938,1751205445536,-490.0,0.00024657,2]
[368554939,1751205445558,-490.0,0.00024657,2]
[368554940,1751205445579,-490.0,0.00024657,2]
[368554941,1751205445600,-490.0,0.00024657,2]
[368554942,1751205445621,-490.0,0.00024657,2]
[368554943,1751205445643,-493.48,0.00024657,2]
[368554944,1751205445666,-490.0,0.00024657,2]
[368554945,1751205445688,-581.21,0.00024657,2]
[368554946,1751205445711,-1161.64,0.00024657,2]
[368554947,1751205445732,-490.0,0.00024657,2]
[368554948,1751205445753,-490.0,0.00024657,2]
[368554949,1751205445775,-490.0,0.00024657,2]
[368554950,1751205445795,-490.0,0.00024657,2]
[368554951,1751205445818,-490.0,0.00024657,2]
[368554952,1751205445840,-490.0,0.00024657,2]
[368554953,1751205445863,-490.0,0.00024657,2]
[368554954,1751205445884,-490.0,0.00024657,2]
[368554955,1751205445906,-410.57404717,0.00024657,2]
[368554956,1751205445929,-547.27,0.00024657,2]
[368554957,1751205445950,-490.0,0.00024657,2]
[368554958,1751205445973,-490.0,0.00024657,2]
[368554959,1751205445997,-490.0,0.00024657,2]
[368554960,1751205446019,-490.0,0.00024657,2]
[368554961,1751205446040,-490.0,0.00024657,2]
[368554962,1751205446062,-490.0,0.00024657,2]
[368554963,1751205446083,-3030.03,0.00024657,2]
[368554964,1751205446104,-155.06607111,0.00024657,2]
[368554965,1751205446126,-490.0,0.00024657,2]
[368554966,1751205446147,-490.0,0.00024657,2]
[368554967,1751205446168,-490.0,0.00024657,2]
[368554968,1751205446191,-490.0,0.00024657,2]
[368554969,1751205446212,-577.1,0.00024657,2]
[368554970,1751205446234,-490.0,0.00024657,2]
[368554971,1751205446256,-490.0,0.00024657,2]
[368554972,1751205446278,-490.0,0.00024657,2]
[368554973,1751205446299,-490.0,0.00024657,2]
[368554974,1751205446322,-547.76,0.00024657,2]
[368554975,1751205446344,-1116.82,0.00024657,2]
[368554976,1751205446365,-1724.31,0.00024657,2]
[368554977,1751205446387,-490.0,0.00024657,2]
[368554978,1751205446410,-490.0,0.00024657,2]
[368554979,1751205446432,-577.13,0.00024657,2]
[368554980,1751205446454,-490.0,0.00024657,2]
[368554981,1751205446475,-490.0,0.00024657,2]
[368554982,1751205446497,-490.0,0.00024657,2]
[368554983,1751205446519,-492.1847077,0.00024657,2]
[368554984,1751205446540,-490.0,0.00024657,2]
[368554985,1751205446563,-661.69,0.00024657,2]
[368554986,1751205446584,-490.0,0.00024657,2]
[368554987,1751205446607,-3078.81,0.00024657,2]
[368554988,1751205446629,-490.0,0.00024657,2]
[368554989,1751205446651,-490.0,0.00024657,2]
[368554990,1751205446672,-490.0,0.00024657,2]
[368554991,1751205446694,-490.0,0.00024657,2]
[368554992,1751205446716,-490.0,0.00024657,2]
[368554993,1751205446739,-490.0,0.00024657,2]
[368554994,1751205446761,-490.0,0.00024657,2]
[368554995,1751205446783,-490.0,0.00024657,2]
[368554996,1751205446805,-490.0,0.00024657,2]
[368554997,1751205446826,-490.0,0.00024657,2]
[368554998,1751205446847,-1020.41,0.00024657,2]
[368554999,1751205446868,-490.0,0.00024657,2]
[368555000,1751205446890,-490.0,0.00024657,2]
[368555001,1751205446912,-990.58,0.00024657,2]
[368555002,1751205446934,-490.0,0.00024657,2]
[368555003,1751205446955,-490.0,0.00024657,2]
[368555004,1751205446981,-490.0,0.00024657,2]
[368555005,1751205447004,-490.0,0.00024657,2]
[368555006,1751205447028,-490.0,0.00024657,2]
[368555007,1751205447050,-1110.48,0.00024657,2]
[368555008,1751205447072,-490.0,0.00024657,2]
[368555009,1751205447094,-647.26,0.00024657,2]
[368555010,1751205447116,-1847.93,0.00024657,2]
[368555011,1751205447149,-490.0,0.00024657,2]
[368555012,1751205447173,-445.92955024,0.00024657,2]
[368555013,1751205447197,-490.0,0.00024657,2]
[368555014,1751205447219,-490.0,0.00024657,2]
[368555015,1751205447241,-490.0,0.00024657,2]
[368555016,1751205447264,-579.89,0.00024657,2]
[368555017,1751205447287,-1039.24,0.00024657,2]
[368555018,1751205447309,-574.18,0.00024657,2]
[368555019,1751205447332,-1463.02,0.00024657,2]
[368555020,1751205447354,-490.0,0.00024657,2]
[368555021,1751205447376,-490.0,0.00024657,2]
[368555022,1751205447398,-495.7195587,0.00024657,2]
[368555023,1751205447421,-1080.11,0.00024657,2]
[368555024,1751205447443,-490.0,0.00024657,2]
[368555025,1751205447466,-1225.08,0.00024657,2]
[368555026,1751205447488,-490.0,0.00024657,2]
[368555027,1751205447510,-490.0,0.00024657,2]
[368555028,1751205447532,-490.0,0.00024657,2]
[368555029,1751205447554,-490.0,0.00024657,2]
[368555030,1751205447577,-151.0,0.00024657,2]
[368555031,1751205447600,-2844.22,0.00024657,2]
[368555032,1751205447624,-490.0,0.00024657,2]
[368555033,1751205447646,-2223.26,0.00024657,2]
[368555034,1751205447674,-490.0,0.00024657,2]
[368555035,1751205447697,-490.0,0.00024657,2]
[368555036,1751205447744,-664.4,0.00024657,2]
[368555037,1751205447788,-490.0,0.00024657,2]
[368555038,1751205447834,-490.0,0.00024657,2]
[368555039,1751205447886,-490.0,0.00024657,2]
[368555040,1751205447924,-490.0,0.00024657,2]
[368555041,1751205447948,-490.0,0.00024657,2]
[368555042,1751205447975,-2630.46,0.00024657,2]
[368555043,1751205448000,-490.0,0.00024657,2]
[368555044,1751205448025,-1255.96,0.00024657,2]
[368555045,1751205448047,-683.94,0.00024657,2]
[368555046,1751205448071,-663.59,0.00024657,2]
[368555047,1751205448094,-490.0,0.00024657,2]
[368555048,1751205448117,-1568.45,0.00024657,2]
[368555049,1751205448139,-206.7049461,0.00024657,2]
[368555050,1751205448161,-491.01670181,0.00024657,2]
[368555051,1751205448184,-490.0,0.00024657,2]
[368555052,1751205448207,-811.05,0.00024657,2]
[368555053,1751205448229,-490.0,0.00024657,2]
[368555054,1751205448253,-490.0,0.00024657,2]
[368555055,1751205448276,-490.0,0.00024657,2]
[368555056,1751205448299,-490.0,0.00024657,2]
[368555057,1751205448326,-490.0,0.00024657,2]
[368555058,1751205448349,-524.43,0.00024657,2]
[368555059,1751205448373,-1807.27,0.00024657,2]
[368555060,1751205448397,-2463.01,0.00024657,2]
[368555061,1751205448420,-490.0,0.00024657,2]
[368555062,1751205448444,-938.67857967,0.00024657,2]
[368555063,1751205491357,1374.0,0.0002739,120]
[368555064,1751205494085,1897.0,0.0002739,120]
[368555066,1751205521223,-205.0,0.00022206,6]
[368555067,1751205521247,-305.85,0.00022463,2]
[368555068,1751205521270,-1500.0,0.00023082,2]
[368555069,1751205521292,-1500.0,0.0002394,2]
[368555070,1751205521314,-301.36,0.00023959,2]
[368555072,1751205521336,-1000.0,0.00023959,2]
[368555073,1751205521358,-8069.54879737,0.00024405,2]
[368555074,1751205521380,-382.34041399,0.00024414,2]
[368555075,1751205521402,-1500.0,0.00024427,2]
[368555076,1751205521424,-622.039809,0.00024431,4]
[368555077,1751205521447,-382.34041399,0.00024432,2]
[368555078,1751205521468,-8069.54879737,0.00024458,2]
[368555079,1751205521490,-382.34041399,0.00024461,2]
[368555080,1751205521512,-8069.54879737,0.00024467,2]
[368555081,1751205521534,-382.34041399,0.00024482,2]
[368555082,1751205521555,-1000.0,0.00024547,2]
[368555083,1751205521577,-6778.5294,0.00024557,2]
[368555084,1751205521599,-302.96,0.00024557,2]
[368555085,1751205521621,-304.53,0.00024557,2]
[368555086,1751205521644,-10970.12740948,0.00024557,2]
[368555087,1751205521668,-625.31178074,0.00024557,2]
[368555088,1751205521690,-165.39618804,0.00024557,2]
[368555089,1751205521710,-382.34041399,0.00024565,2]
[368555090,1751205521734,-8069.54879737,0.00024569,2]
[368555091,1751205521756,-1000.0,0.000246,2]
[368555092,1751205521779,-1000.0,0.000246,2]
[368555093,1751205521801,-1000.0,0.000246,2]
[368555094,1751205521823,-625.31178071,0.00024648,2]
[368555095,1751205521845,-165.39618796,0.00024648,2]
[368555096,1751205521865,-1000.0,0.00024656,2]
[368555097,1751205521886,-1000.0,0.00024656,2]
[368555098,1751205521907,-1000.0,0.00024656,2]
[368555099,1751205521928,-1000.0,0.00024656,2]
[368555100,1751205521952,-59745.24434305,0.00024657,4]
[368555101,1751205521975,-5039.63878689,0.00024657,4]
[368555102,1751205521996,-304.45,0.00024657,2]
[368555103,1751205522020,-301.1,0.00024657,2]
[368555104,1751205522041,-221.01882731,0.00024657,2]
[368555105,1751205522063,-490.0,0.00024657,2]
[368555106,1751205522085,-490.0,0.00024657,2]
[368555107,1751205522108,-490.0,0.00024657,2]
[368555108,1751205522130,-2407.23,0.00024657,2]
[368555109,1751205522153,-490.0,0.00024657,2]
[368555110,1751205522174,-490.0,0.00024657,2]
[368555111,1751205522198,-490.0,0.00024657,2]
[368555112,1751205522218,-503.01354813,0.00024657,2]
[368555113,1751205522239,-490.0,0.00024657,2]
[368555114,1751205522260,-490.0,0.00024657,2]
[368555115,1751205522281,-490.0,0.00024657,2]
[368555116,1751205522302,-490.0,0.00024657,2]
[368555117,1751205522323,-492.97651455,0.00024657,2]
[368555118,1751205522344,-1223.82,0.00024657,2]
[368555119,1751205522365,-697.99,0.00024657,2]
[368555120,1751205522386,-490.0,0.00024657,2]
[368555121,1751205522407,-614.25,0.00024657,2]
[368555122,1751205522428,-490.0,0.00024657,2]
[368555123,1751205522449,-490.0,0.00024657,2]
[368555124,1751205522470,-490.0,0.00024657,2]
[368555125,1751205522737,-490.0,0.00024657,2]
[368555126,1751205522758,-490.0,0.00024657,2]
[368555127,1751205522780,-589.35,0.00024657,2]
[368555128,1751205522802,-577.29,0.00024657,2]
[368555129,1751205522825,-975.4,0.00024657,2]
[368555130,1751205522846,-490.0,0.00024657,2]
[368555131,1751205522867,-490.0,0.00024657,2]
[368555132,1751205522887,-460.8941265,0.00024657,2]
[368555133,1751205522909,-490.0,0.00024657,2]
[368555134,1751205522929,-490.0,0.00024657,2]
[368555135,1751205522952,-490.0,0.00024657,2]
[368555136,1751205522973,-490.0,0.00024657,2]
[368555137,1751205522994,-490.0,0.00024657,2]
[368555138,1751205523020,-1985.08,0.00024657,2]
[368555139,1751205523041,-490.0,0.00024657,2]
[368555140,1751205523063,-490.0,0.00024657,2]
[368555141,1751205523085,-491.42415589,0.00024657,2]
[368555142,1751205523109,-490.0,0.00024657,2]
[368555143,1751205523131,-1458.87,0.00024657,2]
[368555144,1751205523153,-490.0,0.00024657,2]
[368555145,1751205523174,-490.0,0.00024657,2]
[368555146,1751205523194,-490.0,0.00024657,2]
[368555147,1751205523215,-490.0,0.00024657,2]
[368555148,1751205523235,-490.0,0.00024657,2]
[368555149,1751205523256,-490.0,0.00024657,2]
[368555150,1751205523276,-620.07,0.00024657,2]
[368555151,1751205523298,-490.0,0.00024657,2]
[368555152,1751205523320,-490.0,0.00024657,2]